bitfinex-derivatives/quotes_BTCF0:USTF0_20240825
["timestamp","ask_amount","ask_price","bid_price","bid_amount"]
[1724594194296,0.080944,64117.0,64116.0,0.00754016]
[1724594194492,0.080944,64117.0,64116.0,0.0319134]
[1724594194689,0.080944,64117.0,64116.0,0.00754016]
[1724594196985,0.17441701,64117.0,64116.0,0.00754016]
[1724594201507,0.14329826,64117.0,64116.0,0.00754016]
[1724594205403,0.158888,64117.0,64116.0,0.00754016]
[1724594205604,0.158888,64117.0,64116.0,0.05397916]
[1724594209403,0.158888,64117.0,64116.0,0.00754016]
[1724594210101,0.158888,64117.0,64116.0,0.00820951]
[1724594214204,0.158888,64117.0,64116.0,0.0024]
[1724594214409,0.158888,64117.0,64116.0,0.01642022]
[1724594219613,0.236832,64117.0,64116.0,2.2e-07]
[1724594219815,0.077947,64114.0,64112.0,0.00023404]
[1724594220019,0.3608,64113.0,64112.0,0.00023404]
[1724594220608,0.3612,64113.0,64112.0,0.00023404]
[1724594220814,0.517096,64113.0,64112.0,0.00023404]
[1724594221014,0.517096,64113.0,64112.0,0.00123404]
[1724594221915,0.517096,64113.0,64112.0,0.02561087]
[1724594222329,0.521096,64113.0,64112.0,0.02661087]
[1724594222725,0.521096,64113.0,64112.0,0.00123404]
[1724594223025,0.529096,64113.0,64112.0,0.00223404]
[1724594225826,0.55209578,64113.0,64112.0,0.00223404]
[1724594228138,0.61440677,64113.0,64112.0,0.00223404]
[1724594230527,0.55209578,64113.0,64112.0,0.00223404]
[1724594231130,0.61440792,64113.0,64112.0,0.00223404]
[1724594231637,0.64565124,64113.0,64112.0,0.00223404]
[1724594231849,0.55209578,64113.0,64112.0,0.00223404]
[1724594232335,0.64565124,64113.0,64112.0,0.00223404]
[1724594234543,0.56770324,64113.0,64112.0,0.00223404]
[1724594239544,0.47414778,64113.0,64112.0,0.00223404]
[1724594241541,0.47414778,64113.0,64112.0,0.04867074]
[1724594242745,0.47414778,64113.0,64112.0,0.04867629]
[1724594246647,0.47414778,64113.0,64112.0,0.00223404]
[1724594248050,0.0124,64113.0,64112.0,0.11018304]
[1724594248242,0.0124,64113.0,64112.0,0.13455638]
[1724594248442,0.3608,64120.0,64112.0,0.13455638]
[1724594248443,0.00059229,64115.0,64114.0,0.077947]
[1724594248645,0.00059229,64119.0,64116.0,0.077944]
[1724594248947,0.00059229,64119.0,64118.0,0.3608]
[1724594249149,0.00059229,64119.0,64118.0,0.38517334]
[1724594249452,0.07794,64120.0,64118.0,0.38517334]
[1724594249652,0.10108356,64120.0,64119.0,0.02437334]
[1724594250251,0.10108356,64120.0,64119.0,0.02477334]
[1724594251140,0.10208356,64120.0,64119.0,0.0014]
[1724594252151,0.10208356,64120.0,64119.0,0.0024]
[1724594254758,0.10208356,64120.0,64119.0,0.02570759]
[1724594255064,0.10208356,64120.0,64119.0,0.0024]
[1724594257578,0.001,64120.0,64119.0,0.20373764]
[1724594257752,0.00092,64133.0,64119.0,0.99367664]
[1724594257753,0.077925,64132.0,64119.0,0.99367664]
[1724594257962,0.10108418,64132.0,64128.0,0.04634999]
[1724594258253,0.10108418,64132.0,64127.0,0.12427999]
[1724594258458,0.077926,64131.0,64127.0,0.12427999]
[1724594258657,0.077928,64130.0,64127.0,0.07793]
[1724594258957,0.0004,64128.0,64127.0,0.07793]
[1724594260048,0.0004,64128.0,64127.0,0.07893]
[1724594260760,0.0014,64128.0,64127.0,0.07893]
[1724594260960,0.0014,64128.0,64127.0,0.07993]
[1724594261156,0.44013,64128.0,64127.0,0.002]
[1724594261355,0.07933,64128.0,64127.0,0.002]
[1724594266562,0.07933,64128.0,64127.0,0.02438117]
[1724594266763,0.07933,64128.0,64127.0,0.002]
[1724594276370,0.14158148,64128.0,64127.0,0.002]
[1724594277275,0.07933,64128.0,64127.0,0.002]
[1724594278167,0.07933,64128.0,64127.0,0.06379999]
[1724594278969,0.07933,64128.0,64127.0,0.002]
[1724594279173,0.07933,64128.0,64127.0,0.04836567]
[1724594279373,0.07933,64128.0,64127.0,0.002]
[1724594283079,0.07933,64128.0,64127.0,0.06379999]
[1724594283578,0.07933,64128.0,64127.0,0.06385035]
[1724594283971,0.07933,64128.0,64127.0,0.002]
[1724594284172,0.07933,64128.0,64127.0,0.012]
[1724594284473,0.07933,64128.0,64127.0,0.002]
[1724594284873,0.07933,64128.0,64127.0,0.00378383]
[1724594285271,0.07933,64128.0,64127.0,0.01378383]
[1724594286774,0.07933,64128.0,64127.0,0.09171483]
[1724594287379,0.15712184,64128.0,64127.0,0.09171483]
[1724594289284,0.07919184,64128.0,64127.0,0.09171483]
[1724594292285,0.0014,64128.0,64127.0,0.28787427]
[1724594293282,0.0014,64128.0,64127.0,0.21047052]
[1724594295591,0.0014,64128.0,64127.0,0.23483763]
[1724594298790,0.0014,64128.0,64127.0,0.21047052]
[1724594299094,0.0014,64128.0,64127.0,0.23483504]
[1724594299294,0.0014,64128.0,64127.0,0.11607935]
[1724594299792,0.0014,64128.0,64127.0,0.98387935]
[1724594300089,0.0014,64128.0,64127.0,1.06527426]
[1724594301395,0.0014,64128.0,64127.0,1.00337074]
[1724594301616,0.0014,64128.0,64127.0,0.98387935]
[1724594301789,0.0014,64128.0,64127.0,1.00336982]
[1724594304392,0.0014,64128.0,64127.0,0.98462551]
[1724594304996,0.0014,64128.0,64127.0,0.96026163]
[1724594305296,0.0014,64128.0,64127.0,0.98462592]
[1724594305597,0.0014,64128.0,64127.0,1.03100234]
[1724594305791,0.0014,64128.0,64127.0,0.63100234]
[1724594305993,0.0014,64128.0,64127.0,0.98462592]
[1724594306290,0.0014,64128.0,64127.0,0.58462592]
[1724594306492,0.0014,64128.0,64127.0,0.98462592]
[1724594307195,0.077921,64136.0,64127.0,1.02543592]
[1724594307495,0.006,64138.0,64133.0,0.76842909]
[1724594307688,0.006,64138.0,64134.0,0.19601109]
[1724594307883,0.006,64138.0,64135.0,0.19600928]
[1724594308096,0.006,64138.0,64135.0,0.16727592]
[1724594308489,0.006,64138.0,64137.0,0.0004]
[1724594308694,0.006,64138.0,64137.0,0.1004]
[1724594308892,0.006,64138.0,64137.0,0.12476247]
[1724594309690,0.006,64138.0,64137.0,0.1272931]
[1724594310287,0.006,64138.0,64137.0,0.1282931]
[1724594310900,0.006,64138.0,64137.0,0.22848239]
[1724594312396,0.006,64138.0,64137.0,0.22948239]
[1724594315400,0.006,64138.0,64137.0,0.20511992]
[1724594316106,0.006,64138.0,64137.0,0.25146457]
[1724594317899,0.006,64138.0,64137.0,0.22919428]
[1724594318093,0.006,64138.0,64137.0,0.15127528]
[1724594318094,0.083918,64138.0,64137.0,0.15127528]
[1724594319397,0.083918,64138.0,64137.0,0.10493063]
[1724594319604,0.083918,64138.0,64137.0,0.15128662]
[1724594322002,0.083918,64138.0,64137.0,0.15218058]
[1724594322194,0.083918,64138.0,64137.0,0.10582459]
[1724594322195,0.14623798,64138.0,64137.0,0.10582459]
[1724594323204,0.083918,64138.0,64137.0,0.10582459]
[1724594325005,0.10692651,64138.0,64137.0,0.10582459]
[1724594328115,0.26263635,64138.0,64137.0,0.00582459]
[1724594328309,0.077923,64134.0,64133.0,0.04635599]
[1724594328511,0.438723,64134.0,64133.0,0.02436634]
[1724594329212,0.439123,64134.0,64133.0,0.0861491]
[1724594329412,0.439123,64134.0,64133.0,0.0871491]
[1724594330013,0.439123,64134.0,64133.0,0.0881491]
[1724594330610,0.439123,64134.0,64133.0,0.06378276]
[1724594332215,0.439123,64134.0,64133.0,0.002]
[1724594337715,0.078323,64134.0,64133.0,0.002]
[1724594337915,0.439123,64134.0,64133.0,0.002]
[1724594343319,0.439123,64134.0,64133.0,0.02636638]
[1724594343619,0.439123,64134.0,64133.0,0.002]
[1724594344226,0.439123,64134.0,64133.0,0.06378276]
[1724594344524,0.439123,64134.0,64133.0,0.002]
[1724594345331,0.50141517,64134.0,64133.0,0.002]
[1724594345531,0.439123,64134.0,64133.0,0.002]
[1724594345734,0.50141517,64134.0,64133.0,0.002]
[1724594350538,0.439123,64134.0,64133.0,0.002]
[1724594352329,0.50141517,64134.0,64133.0,0.002]
[1724594352530,0.439123,64134.0,64133.0,0.002]
[1724594358239,0.50141517,64134.0,64133.0,0.002]
[1724594358743,0.517046,64134.0,64133.0,0.02636625]
[1724594358932,0.517046,64134.0,64133.0,0.002]
[1724594359336,0.517046,64134.0,64133.0,0.06395831]
[1724594359536,0.59483784,64134.0,64133.0,0.00325515]
[1724594360842,0.517046,64134.0,64133.0,0.00325515]
[1724594361340,0.59483784,64134.0,64133.0,0.04972031]
[1724594362243,0.59483784,64134.0,64133.0,0.00325515]
[1724594364245,0.517046,64134.0,64133.0,0.00325515]
[1724594364541,0.59483784,64134.0,64133.0,0.00325515]
[1724594365334,0.517046,64134.0,64133.0,0.00325515]
[1724594368348,0.517046,64134.0,64133.0,0.04970338]
[1724594368534,0.517046,64134.0,64133.0,0.04970321]
[1724594374347,0.517046,64134.0,64130.0,0.06193075]
[1724594374348,0.077929,64129.0,64122.0,0.07742219]
[1724594374543,0.43912208,64134.0,64125.0,0.04646001]
[1724594374544,0.077932,64126.0,64125.0,0.04646001]
[1724594374742,0.077932,64126.0,64123.0,0.02437028]
[1724594374743,0.077933,64125.0,64123.0,0.04646001]
[1724594374943,0.1558609,64125.0,64124.0,0.02437158]
[1724594375140,0.077937,64122.0,64121.0,0.04646001]
[1724594375341,0.155874,64122.0,64121.0,0.04646001]
[1724594375647,0.155874,64122.0,64120.0,0.04646001]
[1724594375648,0.077938,64121.0,64120.0,0.04646001]
[1724594375949,0.077939,64120.0,64119.0,0.04646001]
[1724594376254,0.077943,64117.0,64116.0,0.3608]
[1724594376551,0.077943,64117.0,64116.0,0.38517196]
[1724594377049,0.078343,64117.0,64116.0,0.38517196]
[1724594377850,0.080343,64117.0,64116.0,0.38517196]
[1724594378250,0.080343,64117.0,64116.0,0.40720977]
[1724594378687,0.080343,64117.0,64115.0,0.00023404]
[1724594378688,0.077944,64116.0,64115.0,0.00023404]
[1724594379553,0.078344,64116.0,64115.0,0.00023404]
[1724594379949,0.080344,64116.0,64115.0,0.00023404]
[1724594381646,0.082344,64116.0,64115.0,0.00023404]
[1724594401363,0.077946,64115.0,64114.0,0.05967623]
[1724594402063,0.078346,64115.0,64114.0,0.05967623]
[1724594402260,0.078346,64115.0,64113.0,0.0487]
[1724594402261,0.077947,64114.0,64113.0,0.0487]
[1724594402769,0.077947,64114.0,64113.0,0.0587]
[1724594402965,0.078347,64114.0,64113.0,0.0587]
[1724594403964,0.080347,64114.0,64113.0,0.0587]
[1724594404266,0.081347,64114.0,64113.0,0.25490474]
[1724594404464,0.078847,64114.0,64113.0,0.25490474]
[1724594405167,0.078847,64114.0,64113.0,0.17748255]
[1724594405361,0.0034,64114.0,64113.0,0.25543055]
[1724594405564,0.00092,64118.0,64113.0,1.04540255]
[1724594405764,0.3608,64126.0,64117.0,0.3608]
[1724594405765,0.06231826,64124.0,64117.0,0.3608]
[1724594405965,0.077935,64125.0,64124.0,0.077935]
[1724594405966,0.14025326,64125.0,64124.0,0.077935]
[1724594406268,0.077935,64125.0,64124.0,0.077935]
[1724594406657,0.12468532,64125.0,64124.0,0.078335]
[1724594406858,0.38306479,64126.0,64124.0,0.088335]
[1724594407063,0.3608,64126.0,64124.0,0.088335]
[1724594407260,0.04673092,64125.0,64124.0,0.088335]
[1724594407766,0.3608,64126.0,64124.0,0.088335]
[1724594408270,0.002,64125.0,64124.0,0.079335]
[1724594408969,0.002,64125.0,64124.0,0.10242644]
[1724594409371,0.002,64125.0,64124.0,0.10342644]
[1724594409777,0.439652,64126.0,64124.0,0.10342644]
[1724594409962,0.438732,64126.0,64124.0,0.10342644]
[1724594410464,0.438732,64126.0,64125.0,0.0004]
[1724594412166,0.077932,64126.0,64125.0,0.0004]
[1724594412771,0.078932,64126.0,64125.0,0.0004]
[1724594413069,0.001,64126.0,64125.0,0.078333]
[1724594413273,0.001,64126.0,64125.0,0.088333]
[1724594413473,0.04667889,64127.0,64126.0,0.077932]
[1724594413669,0.00023404,64128.0,64127.0,0.077931]
[1724594414373,0.00023404,64128.0,64127.0,0.078331]
[1724594415775,0.00023404,64128.0,64127.0,0.079331]
[1724594416983,0.00123404,64128.0,64127.0,0.080331]
[1724594418874,0.00123404,64128.0,64127.0,0.10469773]
[1724594419480,0.00123404,64128.0,64127.0,0.080331]
[1724594421288,0.00123404,64128.0,64127.0,0.100331]
[1724594421470,0.07916404,64128.0,64127.0,0.080331]
[1724594421672,0.07916404,64128.0,64127.0,0.04873593]
[1724594421983,0.07916404,64128.0,64127.0,0.0024]
[1724594421984,0.22156404,64128.0,64127.0,0.0024]
[1724594429284,0.12626404,64128.0,64127.0,0.0024]
[1724594429583,0.07916404,64128.0,64127.0,0.0024]
[1724594430181,0.07916404,64128.0,64127.0,0.04873593]
[1724594432391,0.07916404,64128.0,64127.0,0.0024]
[1724594436495,0.15709194,64128.0,64127.0,0.0024]
[1724594438180,0.07916404,64128.0,64127.0,0.0024]
[1724594438496,0.15709404,64128.0,64127.0,0.0024]
[1724594439394,0.51789404,64128.0,64127.0,0.0024]
[1724594441989,0.58020641,64128.0,64127.0,0.0024]
[1724594449390,0.51789404,64128.0,64127.0,0.0024]
[1724594449995,0.15709404,64128.0,64127.0,0.0024]
[1724594450200,0.51789404,64128.0,64127.0,0.0024]
[1724594456906,0.51789404,64128.0,64127.0,0.04883666]
[1724594457707,0.15709404,64128.0,64127.0,0.04883666]
[1724594457908,0.51789404,64128.0,64127.0,0.04883666]
[1724594459308,0.15709404,64128.0,64127.0,0.0024]
[1724594459510,0.51789404,64128.0,64127.0,0.0024]
[1724594460512,0.51789404,64128.0,64127.0,0.04883666]
[1724594461029,0.43996404,64128.0,64127.0,0.04883666]
[1724594461512,0.00123404,64128.0,64127.0,0.0024]
[1724594461710,0.00123404,64128.0,64127.0,0.0482]
[1724594461907,0.00123404,64128.0,64127.0,0.07256695]
[1724594462106,0.00123404,64128.0,64127.0,0.18256695]
[1724594463912,0.00123404,64128.0,64127.0,0.26049795]
[1724594464117,0.00123404,64128.0,64127.0,0.36027306]
[1724594464415,0.38376343,64136.0,64132.0,0.077925]
[1724594464608,0.02296343,64136.0,64135.0,0.06187718]
[1724594464807,0.02526391,64136.0,64135.0,0.08624413]
[1724594465113,0.07786844,64136.0,64135.0,0.15268895]
[1724594465305,0.07786844,64137.0,64135.0,0.15268895]
[1724594465503,0.07786844,64137.0,64136.0,0.02436695]
[1724594466129,0.07786844,64137.0,64136.0,0.0004]
[1724594467017,0.07786844,64137.0,64136.0,0.0014]
[1724594467608,0.07786844,64137.0,64136.0,0.0024]
[1724594468318,0.08386844,64138.0,64136.0,0.0024]
[1724594468719,0.08386844,64138.0,64137.0,0.00122993]
[1724594469021,0.08386844,64138.0,64137.0,0.00162993]
[1724594470250,0.006,64138.0,64137.0,0.00162993]
[1724594470417,0.006,64138.0,64137.0,0.00262993]
[1724594470615,0.006,64138.0,64137.0,0.00362993]
[1724594472412,0.083918,64138.0,64137.0,0.00362993]
[1724594480326,0.10918139,64138.0,64137.0,0.00362993]
[1724594481121,0.083918,64138.0,64137.0,0.00362993]
[1724594481424,0.10918139,64138.0,64137.0,0.00362993]
[1724594483919,0.10918139,64138.0,64137.0,0.00369228]
[1724594487015,0.083918,64138.0,64137.0,0.00369228]
[1724594487421,0.083918,64138.0,64137.0,0.05009881]
[1724594487622,0.083918,64138.0,64137.0,0.00369228]
[1724594489327,0.083918,64138.0,64137.0,0.05009881]
[1724594489328,0.13058698,64138.0,64137.0,0.05009881]
[1724594489832,0.083918,64138.0,64137.0,0.00369228]
[1724594491427,0.083918,64138.0,64137.0,0.06556946]
[1724594492033,0.083918,64138.0,64137.0,0.00369228]
[1724594492334,0.083918,64138.0,64137.0,0.06556946]
[1724594493334,0.14614331,64138.0,64137.0,0.00369228]
[1724594495139,0.083918,64138.0,64137.0,0.00369228]
[1724594496039,0.14627354,64138.0,64137.0,0.00369228]
[1724594497231,0.083918,64138.0,64137.0,0.0656898]
[1724594497432,0.129618,64138.0,64137.0,0.0656898]
[1724594499743,0.129618,64138.0,64137.0,0.00369228]
[1724594502137,0.24838877,64138.0,64137.0,0.00369228]
[1724594502339,0.15488227,64138.0,64137.0,0.00369228]
[1724594503435,0.15488227,64138.0,64137.0,0.02805732]
[1724594503635,0.15488227,64138.0,64137.0,0.05242236]
[1724594505742,0.15488215,64138.0,64137.0,0.05242236]
[1724594507357,0.15488215,64138.0,64137.0,0.02805732]
[1724594507543,0.15488215,64138.0,64137.0,0.05242241]
[1724594507945,0.15488215,64138.0,64137.0,0.0767875]
[1724594510049,0.129618,64138.0,64137.0,0.0767875]
[1724594510445,0.129618,64138.0,64137.0,0.00369228]
[1724594512045,0.083918,64138.0,64137.0,0.02805736]
[1724594516750,0.083918,64138.0,64137.0,0.00369228]
[1724594518557,0.083918,64138.0,64137.0,0.02805734]
[1724594519650,0.083918,64138.0,64137.0,0.00369228]
[1724594519857,0.083918,64138.0,64137.0,0.02805734]
[1724594520651,0.14628173,64138.0,64137.0,0.02805734]
[1724594523958,0.14628173,64138.0,64137.0,0.0280568]
[1724594524158,0.13928026,64138.0,64137.0,0.0280568]
[1724594524459,0.13928026,64138.0,64137.0,0.0780568]
[1724594524961,0.10918156,64138.0,64137.0,0.0280568]
[1724594525956,0.10918156,64138.0,64137.0,0.1059758]
[1724594526166,0.10918124,64138.0,64137.0,0.1059758]
[1724594527063,0.10918124,64138.0,64137.0,0.08161128]
[1724594527366,0.10918124,64138.0,64137.0,0.1060945]
[1724594527558,0.10918124,64138.0,64137.0,0.10611119]
[1724594528459,0.17743198,64138.0,64137.0,0.11611119]
[1724594528664,0.12477722,64138.0,64137.0,0.11611119]
[1724594529255,0.03126209,64138.0,64137.0,0.11611119]
[1724594530558,0.03126209,64138.0,64137.0,0.11511119]
[1724594530753,0.03126209,64138.0,64137.0,0.11611119]
[1724594531961,0.03126209,64138.0,64137.0,0.11511119]
[1724594532158,0.03126209,64138.0,64137.0,0.23484164]
[1724594532367,0.07814704,64142.0,64139.0,0.077916]
[1724594532567,0.07814704,64142.0,64140.0,0.10321017]
[1724594532757,0.07814704,64142.0,64141.0,0.0243642]
[1724594533693,0.07814704,64142.0,64141.0,0.02578995]
[1724594533869,0.07814704,64142.0,64141.0,0.00142799]
[1724594534964,0.07814704,64142.0,64141.0,0.00242799]
[1724594536057,0.07814704,64142.0,64141.0,0.00342799]
[1724594538865,0.07814704,64142.0,64141.0,0.06534235]
[1724594539169,0.077907,64147.0,64141.0,0.02342799]
[1724594539170,0.04671368,64144.0,64141.0,0.02342799]
[1724594539369,0.07785614,64144.0,64141.0,0.02342799]
[1724594539562,0.077908,64147.0,64141.0,0.02342799]
[1724594539563,0.06226949,64143.0,64142.0,0.02435925]
[1724594539763,0.06226949,64144.0,64143.0,0.077912]
[1724594539965,0.06226949,64144.0,64143.0,0.20227125]
[1724594540274,0.06226949,64145.0,64143.0,0.177912]
[1724594540664,0.06226949,64145.0,64144.0,0.02578712]
[1724594540864,0.06226949,64145.0,64144.0,0.21369812]
[1724594541058,0.06226949,64145.0,64144.0,0.21409812]
[1724594541261,0.077908,64147.0,64144.0,0.21409812]
[1724594541262,0.06226949,64146.0,64144.0,0.21409812]
[1724594541467,0.06226949,64146.0,64145.0,0.38515913]
[1724594541666,0.077908,64147.0,64145.0,0.49515913]
[1724594541966,0.077908,64147.0,64146.0,0.38515913]
[1724594542576,0.077908,64147.0,64146.0,0.38555913]
[1724594542869,0.077908,64147.0,64146.0,0.38698712]
[1724594543496,0.07785614,64151.0,64146.0,0.41262799]
[1724594543665,0.06220847,64148.0,64147.0,0.02435893]
[1724594543865,0.06220847,64149.0,64148.0,0.077906]
[1724594544176,0.06220847,64150.0,64149.0,0.077904]
[1724594544370,0.06220847,64151.0,64150.0,0.077903]
[1724594544571,0.06220847,64151.0,64150.0,0.10226193]
[1724594544871,0.06220847,64151.0,64150.0,0.15226193]
[1724594545068,0.06220847,64152.0,64151.0,0.077902]
[1724594545268,0.06220847,64153.0,64152.0,0.077901]
[1724594545472,0.06220847,64153.0,64152.0,0.11225993]
[1724594546067,0.06220847,64153.0,64152.0,0.078301]
[1724594546272,0.06220847,64154.0,64152.0,0.0800035]
[1724594546474,0.06220847,64154.0,64152.0,0.0810035]
[1724594546675,0.3608,64156.0,64152.0,0.0810035]
[1724594546676,0.06220847,64153.0,64152.0,0.0810035]
[1724594546877,0.0779,64153.0,64152.0,0.0031025]
[1724594547173,0.15575614,64153.0,64152.0,0.0031025]
[1724594547371,0.0779,64153.0,64152.0,0.0031025]
[1724594547572,0.0779,64153.0,64152.0,0.0041025]
[1724594547772,0.1268,64153.0,64152.0,0.00497678]
[1724594549173,0.14808162,64153.0,64152.0,0.00497678]
[1724594549376,0.1268,64153.0,64152.0,0.00497678]
[1724594550074,0.1268,64153.0,64152.0,0.00397678]
[1724594550977,0.1268,64153.0,64152.0,0.00497678]
[1724594554369,0.15205745,64153.0,64152.0,0.00497678]
[1724594554875,0.15205745,64153.0,64152.0,0.00397678]
[1724594555073,0.02525745,64153.0,64152.0,0.00497678]
[1724594555268,0.077899,64154.0,64152.0,0.00497678]
[1724594555467,0.02525744,64153.0,64152.0,0.00497678]
[1724594555975,0.0252574,64153.0,64152.0,0.00497678]
[1724594556480,0.0252574,64153.0,64152.0,0.00397678]
[1724594556673,0.0252574,64153.0,64152.0,0.00497678]
[1724594558175,0.0252574,64153.0,64152.0,0.08287778]
[1724594559976,0.02525674,64153.0,64152.0,0.08287778]
[1724594560779,0.00025674,64153.0,64152.0,0.08287778]
[1724594562280,0.077899,64154.0,64152.0,0.14478441]
[1724594562784,0.077899,64154.0,64152.0,0.080301]
[1724594562986,0.077899,64154.0,64153.0,0.00297678]
[1724594564087,0.077899,64154.0,64153.0,0.00397678]
[1724594564876,0.077899,64154.0,64153.0,0.08187678]
[1724594565389,0.077899,64154.0,64153.0,0.14378341]
[1724594566587,0.077899,64154.0,64153.0,0.14478341]
[1724594567193,0.077899,64154.0,64153.0,0.14378341]
[1724594567387,0.077899,64154.0,64153.0,0.14478341]
[1724594568382,0.077899,64154.0,64153.0,0.15478341]
[1724594568984,0.077899,64154.0,64153.0,0.09287678]
[1724594569586,0.077899,64154.0,64153.0,0.08287678]
[1724594570178,0.077899,64154.0,64153.0,0.10472929]
[1724594572095,0.077899,64154.0,64153.0,0.00497678]
[1724594576296,0.077899,64154.0,64153.0,0.04497678]
[1724594577300,0.077899,64154.0,64153.0,0.00497678]
[1724594578001,0.077899,64154.0,64153.0,0.02933437]
[1724594579717,0.14022629,64154.0,64153.0,0.02933437]
[1724594580613,0.14022629,64154.0,64153.0,0.01497678]
[1724594580817,0.14022629,64154.0,64153.0,0.03933431]
[1724594581112,0.077899,64154.0,64153.0,0.03933431]
[1724594581313,0.04674244,64157.0,64153.0,0.15803327]
[1724594581514,0.04674244,64160.0,64157.0,0.077894]
[1724594581820,0.04674033,64161.0,64159.0,0.3608]
[1724594582019,0.04674033,64161.0,64160.0,0.10431683]
[1724594582215,0.04674033,64161.0,64160.0,0.22300814]
[1724594582619,0.04674033,64161.0,64160.0,0.22340814]
[1724594583211,0.04674033,64161.0,64160.0,0.22540814]
[1724594583412,0.077889,64162.0,64160.0,0.22540814]
[1724594583413,0.077889,64162.0,64160.0,0.10671683]
[1724594583619,0.077889,64162.0,64161.0,0.0270506]
[1724594584210,0.077889,64162.0,64161.0,0.0274506]
[1724594585621,0.12463674,64162.0,64161.0,0.22452398]
[1724594585822,0.077889,64162.0,64161.0,0.09028588]
[1724594586016,0.077889,64162.0,64161.0,0.06592835]
[1724594586813,0.077889,64162.0,64161.0,0.06692835]
[1724594588724,0.077889,64162.0,64161.0,0.00509307]
[1724594592422,0.077889,64162.0,64161.0,0.00514608]
[1724594592623,0.10314147,64162.0,64161.0,0.02514608]
[1724594592822,0.15562531,64162.0,64161.0,0.02514608]
[1724594593027,0.15562531,64162.0,64161.0,0.04949864]
[1724594593824,0.15562531,64162.0,64161.0,0.12743926]
[1724594594214,0.02525079,64162.0,64161.0,0.12743926]
[1724594594420,0.02525079,64162.0,64161.0,0.1030867]
[1724594595030,0.09349094,64165.0,64161.0,0.1030867]
[1724594595323,0.05533427,64164.0,64162.0,0.077889]
[1724594595527,0.077886,64165.0,64162.0,0.107889]
[1724594595528,0.02525079,64163.0,64162.0,0.107889]
[1724594595724,0.02525079,64164.0,64162.0,0.1106857]
[1724594596531,0.02525079,64164.0,64163.0,0.0004]
[1724594596727,0.02525079,64164.0,64163.0,0.0131967]
[1724594597326,0.02525079,64164.0,64163.0,0.0031967]
[1724594598129,0.10313679,64164.0,64163.0,0.0031967]
[1724594598831,0.10313679,64164.0,64163.0,0.0041967]
[1724594599332,0.10313679,64164.0,64163.0,0.0051967]
[1724594599531,0.10313679,64164.0,64163.0,0.0930837]
[1724594600625,0.12461017,64164.0,64163.0,0.0930837]
[1724594601027,0.04672417,64164.0,64163.0,0.0930837]
[1724594601630,0.04672417,64165.0,64164.0,0.077886]
[1724594601830,0.04672417,64165.0,64164.0,0.1006827]
[1724594602433,0.04672417,64165.0,64164.0,0.1010827]
[1724594602734,0.0622989,64167.0,64166.0,0.077884]
[1724594602942,0.0622989,64167.0,64166.0,0.5005762]
[1724594603330,0.0372989,64167.0,64166.0,0.5005762]
[1724594603531,0.0372989,64167.0,64166.0,0.5009762]
[1724594603731,0.07788,64169.0,64166.0,0.5009762]
[1724594603934,0.07788,64169.0,64167.0,0.0027967]
[1724594604128,0.07788,64169.0,64167.0,0.0806797]
[1724594604535,0.07788,64169.0,64168.0,0.0004]
[1724594604948,0.07788,64169.0,64168.0,0.0031967]
[1724594606337,0.07788,64169.0,64168.0,0.0041967]
[1724594606938,0.07788,64169.0,64168.0,0.0051967]
[1724594607737,0.13321372,64169.0,64168.0,0.0051967]
[1724594608438,0.13321369,64169.0,64168.0,0.0051967]
[1724594611952,0.10313054,64169.0,64168.0,0.0051967]
[1724594614241,0.10313054,64169.0,64168.0,0.02954836]
[1724594614735,0.07788,64169.0,64168.0,0.0670889]
[1724594614948,0.07788,64169.0,64168.0,0.09144056]
[1724594615146,0.07788,64169.0,64168.0,0.0670889]
[1724594616448,0.07788,64169.0,64168.0,0.09144049]
[1724594616949,0.07788,64169.0,64168.0,0.0670889]
[1724594617149,0.07788,64169.0,64168.0,0.09144048]
[1724594618343,0.07788,64169.0,64168.0,0.09144045]
[1724594619346,0.07788,64169.0,64168.0,0.0670889]
[1724594620843,0.43868,64169.0,64168.0,0.0051967]
[1724594621051,0.43868,64169.0,64168.0,0.051623]
[1724594621349,0.43868,64169.0,64168.0,0.0516274]
[1724594622751,0.43868,64169.0,64168.0,0.0051967]
[1724594622752,0.49401732,64169.0,64168.0,0.0051967]
[1724594630752,0.43868,64169.0,64168.0,0.02954959]
[1724594631254,0.43868,64169.0,64168.0,0.02954956]
[1724594634156,0.43868,64169.0,64168.0,0.09147044]
[1724594635251,0.43868,64169.0,64168.0,0.02954956]
[1724594635448,0.43868,64169.0,64168.0,0.0051967]
[1724594635653,0.43868,64169.0,64168.0,0.02955047]
[1724594635851,0.51656,64169.0,64168.0,0.02955047]
[1724594636152,0.077885,64165.0,64164.0,0.04645072]
[1724594636348,0.077885,64165.0,64159.0,0.00084]
[1724594636349,0.077887,64163.0,64162.0,0.04645072]
[1724594636551,0.15578,64161.0,64160.0,0.04645072]
[1724594636753,0.077891,64160.0,64159.0,0.04645072]
[1724594636956,0.174791,64160.0,64159.0,0.04645072]
[1724594637256,0.174791,64160.0,64158.0,0.04668457]
[1724594637257,0.077892,64159.0,64158.0,0.04668457]
[1724594637663,0.077892,64159.0,64158.0,0.00023385]
[1724594639952,0.09967776,64159.0,64158.0,0.00023385]
[1724594640595,0.10167776,64159.0,64158.0,0.00023385]
[1724594645758,0.12693361,64159.0,64158.0,0.00023385]
[1724594646369,0.10167776,64159.0,64158.0,0.00023385]
[1724594652365,0.17941604,64159.0,64158.0,0.00023385]
[1724594652759,0.10167776,64159.0,64158.0,0.04661183]
[1724594656065,0.079892,64159.0,64158.0,0.12450483]
[1724594657568,0.079892,64159.0,64158.0,0.07812685]
[1724594657771,0.002,64159.0,64158.0,0.07812685]
[1724594657968,0.002,64159.0,64158.0,0.08812685]
[1724594658377,0.0008,64160.0,64159.0,0.077892]
[1724594658677,0.0008,64160.0,64159.0,0.087892]
[1724594658880,0.0008,64160.0,64159.0,0.112247]
[1724594659271,0.0008,64160.0,64159.0,0.157747]
[1724594659675,0.0018,64160.0,64159.0,0.157747]
[1724594660778,0.0028,64160.0,64159.0,0.157747]
[1724594660975,0.0028,64160.0,64159.0,0.133392]
[1724594663370,0.0650521,64160.0,64159.0,0.133392]
[1724594663772,0.0650521,64160.0,64159.0,0.1797857]
[1724594665277,0.0650521,64160.0,64159.0,0.15774665]
[1724594665579,0.0650521,64160.0,64159.0,0.17981648]
[1724594666381,0.0650521,64160.0,64159.0,0.20417116]